bitfinex/quotes_BTCUSD_20230118
["timestamp","ask_amount","ask_price","bid_price","bid_amount"]
[1674000367874,0.001,21168.0,21167.0,1.26096481]
[1674000368140,0.001,21168.0,21167.0,1.34596481]
[1674000369201,0.001,21168.0,21167.0,1.04596481]
[1674000369486,0.32253185,21170.0,21167.0,1.26096481]
[1674000369756,0.32353185,21170.0,21167.0,1.34596481]
[1674000370035,0.321293,21169.0,21167.0,1.26096481]
[1674000370294,0.32253185,21170.0,21167.0,1.26096481]
[1674000370295,0.322293,21168.0,21167.0,0.57353181]
[1674000370592,0.321293,21168.0,21167.0,0.48853181]
[1674000370880,0.321293,21168.0,21167.0,1.04596481]
[1674000371142,0.32353185,21170.0,21167.0,1.04596481]
[1674000371395,0.32253185,21170.0,21167.0,0.96096481]
[1674000371670,0.001,21168.0,21167.0,1.04596481]
[1674000371926,0.001,21168.0,21167.0,1.34596481]
[1674000372436,0.001,21168.0,21167.0,1.26096481]
[1674000372693,0.32353185,21170.0,21167.0,1.34596481]
[1674000373222,0.32353185,21170.0,21167.0,1.26096481]
[1674000373478,0.32353185,21170.0,21168.0,0.3]
[1674000373479,0.32253185,21170.0,21168.0,0.3]
[1674000373753,0.32253185,21170.0,21168.0,1.24479]
[1674000374027,0.00264189,21170.0,21168.0,1.32039]
[1674000374371,0.00164189,21170.0,21169.0,0.0752]
[1674000374615,0.00164189,21170.0,21169.0,1.019976]
[1674000374898,0.00164189,21170.0,21169.0,1.598025]
[1674000375147,0.00164189,21170.0,21169.0,1.319976]
[1674000376420,0.00164189,21170.0,21169.0,1.320976]
[1674000376678,0.01064189,21170.0,21169.0,1.320976]
[1674000377182,0.00164189,21170.0,21169.0,1.319976]
[1674000377454,0.00164189,21170.0,21169.0,2.13846784]
[1674000377689,0.00164189,21170.0,21169.0,2.41108455]
[1674000377955,0.00164189,21170.0,21169.0,2.52404293]
[1674000378709,0.00264189,21170.0,21169.0,2.77748033]
[1674000378950,0.00164189,21170.0,21169.0,2.52404293]
[1674000379195,0.00264189,21170.0,21169.0,2.22799509]
[1674000379446,0.00264189,21170.0,21169.0,2.11503671]
[1674000379957,0.00164189,21170.0,21169.0,1.95583671]
[1674000380219,0.001,21170.0,21169.0,2.15279509]
[1674000380481,0.001,21170.0,21169.0,2.53284293]
[1674000380994,0.001,21170.0,21169.0,2.03983671]
[1674000381506,0.001,21170.0,21169.0,2.51222471]
[1674000384047,0.001,21170.0,21169.0,2.89227255]
[1674000384558,0.001,21170.0,21169.0,3.17466833]
[1674000384806,0.001,21170.0,21169.0,3.08033093]
[1674000385304,0.001,21170.0,21169.0,3.24976833]
[1674000385559,0.001,21170.0,21169.0,3.08033093]
[1674000386069,0.00026744,21170.0,21169.0,3.47794585]
[1674000386357,0.00026744,21170.0,21169.0,3.47789805]
[1674000386603,0.00026744,21170.0,21169.0,3.24976833]
[1674000386866,0.00026744,21170.0,21169.0,3.08033093]
[1674000387109,0.00026744,21170.0,21169.0,3.24976833]
[1674000387358,0.00026744,21170.0,21169.0,3.08033093]
[1674000387900,0.00026744,21170.0,21169.0,2.70028309]
[1674000388159,0.00026744,21170.0,21169.0,3.08033093]
[1674000390007,0.00026744,21170.0,21169.0,3.08103776]
[1674000390534,0.00026744,21170.0,21169.0,2.51293154]
[1674000395114,0.00026744,21170.0,21169.0,2.21293154]
[1674000395391,0.00026744,21170.0,21169.0,1.93488754]
[1674000396686,0.00026744,21170.0,21169.0,2.23488754]
[1674000397185,0.00026744,21170.0,21169.0,2.15948754]
[1674000397986,0.00026744,21170.0,21169.0,2.23488754]
[1674000398494,0.00026744,21170.0,21169.0,2.51293154]
[1674000398787,0.00026744,21170.0,21169.0,2.23488754]
[1674000399518,0.00026744,21170.0,21169.0,3.02623866]
[1674000399776,0.00026744,21170.0,21169.0,2.79532732]
[1674000400033,0.00026744,21170.0,21169.0,2.91327679]
[1674000400296,0.00026744,21170.0,21169.0,3.0262057]
[1674000400770,0.00224744,21170.0,21169.0,2.7481617]
[1674000401028,0.00224744,21170.0,21169.0,3.0262057]
[1674000401476,0.00224744,21170.0,21169.0,2.7481617]
[1674000401735,0.00224744,21170.0,21169.0,2.62586045]
[1674000401991,0.00224744,21170.0,21169.0,2.23488754]
[1674000402498,0.00224744,21170.0,21169.0,1.93488754]
[1674000403008,0.00224744,21170.0,21169.0,2.04781645]
[1674000403232,0.00224744,21170.0,21169.0,1.93488754]
[1674000403496,0.00224744,21170.0,21169.0,2.04781645]
[1674000403751,0.00224744,21170.0,21169.0,2.34781645]
[1674000404007,0.00224744,21170.0,21169.0,2.04781645]
[1674000404276,0.00224744,21170.0,21169.0,1.85878071]
[1674000405184,0.00224744,21170.0,21169.0,2.13682471]
[1674000405359,0.00224744,21170.0,21169.0,1.85878071]
[1674000405650,0.00224744,21170.0,21169.0,2.15878071]
[1674000406720,0.00224744,21170.0,21169.0,1.91634451]
[1674000407293,0.00248846,21170.0,21169.0,1.91634451]
[1674000407552,0.00224744,21170.0,21169.0,1.91634451]
[1674000407815,0.00224744,21170.0,21169.0,1.91705134]
[1674000409377,0.00224744,21170.0,21169.0,1.44466334]
[1674000409668,0.00224744,21170.0,21169.0,1.44395651]
[1674000409919,0.32354044,21170.0,21169.0,1.44395651]
[1674000410981,0.00224744,21170.0,21169.0,1.44395651]
[1674000411497,0.00248846,21170.0,21169.0,1.44395651]
[1674000411939,0.32378146,21170.0,21169.0,1.44395651]
[1674000412201,0.32354044,21170.0,21169.0,1.44395651]
[1674000412716,0.79495388,21170.0,21169.0,0.084]
[1674000413036,1.63335993,21170.0,21169.0,0.084]
[1674000413538,1.63309249,21170.0,21167.0,0.01609881]
[1674000413805,1.79472319,21170.0,21169.0,0.078]
[1674000414071,1.63249249,21170.0,21167.0,0.01609881]
[1674000414340,0.0759,21168.0,21167.0,0.01609881]
[1674000414597,0.397193,21168.0,21167.0,0.01609881]
[1674000415129,0.73165422,21168.0,21167.0,0.01609881]
[1674000415391,0.73165422,21168.0,21165.0,0.472473]
[1674000415667,0.321293,21167.0,21165.0,0.472473]
[1674000415935,0.321293,21166.0,21165.0,0.472473]
[1674000417041,0.94281342,21166.0,21164.0,0.03237557]
[1674000417298,0.321293,21165.0,21164.0,0.03237557]
[1674000418105,1.266249,21165.0,21164.0,0.03237557]
[1674000418403,1.266249,21165.0,21164.0,0.11037557]
[1674000418404,1.267249,21165.0,21164.0,0.11037557]
[1674000418673,0.794771,21165.0,21164.0,0.11037557]
[1674000418935,0.322293,21165.0,21164.0,0.11037557]
[1674000419462,0.32253402,21165.0,21164.0,0.11037557]
[1674000419935,0.32253402,21165.0,21164.0,0.03237557]
[1674000419936,0.32153402,21165.0,21164.0,0.03237557]
[1674000420466,0.49991841,21165.0,21164.0,0.03237557]
[1674000420739,1.47439002,21165.0,21164.0,0.03637557]
[1674000421254,0.369293,21165.0,21164.0,0.03637557]
[1674000421549,0.321293,21165.0,21164.0,0.03237557]
[1674000422094,0.369293,21165.0,21164.0,0.03637557]
[1674000422370,0.32153402,21165.0,21164.0,0.03237557]
[1674000422631,0.36953402,21165.0,21164.0,0.03637557]
[1674000423458,0.84201202,21165.0,21164.0,0.03637557]
[1674000423987,0.79401202,21165.0,21164.0,0.03237557]
[1674000424270,0.84201202,21165.0,21164.0,0.03637557]
[1674000424529,0.84201202,21165.0,21164.0,0.03237557]
[1674000424530,0.32153402,21165.0,21164.0,0.03237557]
[1674000425335,0.321293,21165.0,21164.0,0.03237557]
[1674000425594,0.321293,21165.0,21164.0,0.98137557]
[1674000425852,0.29149992,21166.0,21164.0,1.09131549]
[1674000426635,0.29149992,21166.0,21164.0,0.97737557]
[1674000426905,0.369293,21165.0,21164.0,0.98137557]
[1674000427165,0.369293,21165.0,21164.0,1.27737557]
[1674000427427,0.33949992,21166.0,21164.0,1.27737557]
[1674000428217,0.321293,21165.0,21164.0,1.27737557]
[1674000428475,0.3853,21168.0,21164.0,1.6362857]
[1674000428740,0.43213035,21169.0,21165.0,0.3]
[1674000429012,0.43213035,21169.0,21166.0,0.944902]
[1674000429013,0.0759,21169.0,21166.0,0.944902]
[1674000429274,0.00198,21170.0,21167.0,0.3]
[1674000429546,0.00198,21170.0,21168.0,0.472411]
[1674000429801,0.048,21169.0,21168.0,0.472411]
[1674000430063,0.048,21169.0,21168.0,0.5968972]
[1674000430064,0.321293,21169.0,21168.0,0.5968972]
[1674000430849,0.321293,21169.0,21168.0,0.476411]
[1674000430850,0.369293,21169.0,21168.0,0.476411]
[1674000431690,0.048,21169.0,21168.0,1.248822]
[1674000432167,0.048,21169.0,21168.0,1.6019201]
[1674000432963,0.00198,21170.0,21168.0,1.5979201]
[1674000432964,0.00222102,21170.0,21168.0,1.5979201]
[1674000433236,0.00222102,21170.0,21168.0,1.38890892]
[1674000433237,0.04,21169.0,21168.0,1.38890892]
[1674000433489,0.044,21169.0,21168.0,1.43990892]
[1674000433742,0.00198,21170.0,21168.0,1.38890892]
[1674000434005,0.00198,21170.0,21168.0,1.43990892]
[1674000434267,0.00598,21170.0,21168.0,1.43990892]
[1674000434519,0.00598,21170.0,21169.0,0.3]
[1674000434776,0.00598,21170.0,21169.0,1.244776]
[1674000435033,0.00198,21170.0,21169.0,1.244776]
[1674000436193,0.00198,21170.0,21169.0,1.292776]
[1674000436194,0.00598,21170.0,21169.0,1.292776]
[1674000436458,0.00198,21170.0,21169.0,0.944776]
[1674000436734,0.00598,21170.0,21169.0,1.292776]
[1674000436991,0.00198,21170.0,21169.0,1.244776]
[1674000437240,0.00598,21170.0,21169.0,1.292776]
[1674000437511,0.00198,21170.0,21169.0,1.42408033]
[1674000437771,0.00598,21170.0,21169.0,1.292776]
[1674000438803,0.00198,21170.0,21169.0,1.244776]
[1674000439062,0.00598,21170.0,21169.0,1.292776]
[1674000439598,0.00198,21170.0,21169.0,1.522822]
[1674000439852,0.00598,21170.0,21169.0,1.57082]
[1674000440126,0.00198,21170.0,21169.0,1.67282]
[1674000440371,0.00598,21170.0,21169.0,1.64592]
[1674000440666,0.00598,21170.0,21169.0,1.59792]
[1674000440667,0.00198,21170.0,21169.0,1.59792]
[1674000440925,0.00598,21170.0,21169.0,1.64592]
[1674000441185,0.00198,21170.0,21169.0,1.59792]
[1674000441685,0.00198,21170.0,21169.0,1.74792]
[1674000441954,0.00198,21170.0,21169.0,1.59792]
[1674000442219,0.00598,21170.0,21169.0,1.067876]
[1674000442994,0.00998,21170.0,21169.0,1.115876]
[1674000443335,0.00198,21170.0,21169.0,1.019876]
[1674000443496,0.00198,21170.0,21169.0,1.319876]
[1674000444354,0.00598,21170.0,21169.0,1.367876]
[1674000444645,0.00198,21170.0,21169.0,1.319876]
[1674000444898,0.00598,21170.0,21169.0,1.72082]
[1674000445141,0.00598,21170.0,21169.0,1.95701]
[1674000445645,0.00198,21170.0,21169.0,1.90901]
[1674000445887,0.00198,21170.0,21169.0,1.95701]
[1674000446128,0.00598,21170.0,21169.0,1.90901]
[1674000446666,0.00998,21170.0,21169.0,1.50701]
[1674000446909,0.00998,21170.0,21169.0,1.27082]
[1674000447157,0.00998,21170.0,21169.0,0.992776]
[1674000447643,0.00198,21170.0,21169.0,0.944776]
[1674000447889,0.00198,21170.0,21169.0,1.45901]
[1674000448628,0.00198,21170.0,21169.0,1.80701]
[1674000448863,0.00198,21170.0,21169.0,1.75901]
[1674000450336,0.00198,21170.0,21169.0,1.52282]
[1674000450573,0.00598,21170.0,21169.0,1.292776]
[1674000451411,0.00146925,21170.0,21169.0,2.82566529]
[1674000451652,0.00146925,21170.0,21169.0,2.77495771]
[1674000451897,0.00146925,21170.0,21169.0,3.11338036]
[1674000452385,0.00024224,21170.0,21169.0,3.71453863]
[1674000452623,0.00598627,21172.0,21169.0,3.66653863]
[1674000452864,0.004,21170.0,21169.0,2.11043034]
[1674000453101,0.00598627,21172.0,21169.0,2.11043034]
[1674000453102,0.00598627,21172.0,21169.0,3.46338343]
[1674000453338,0.00598627,21172.0,21171.0,0.26416884]
[1674000453593,0.00598627,21172.0,21171.0,1.22294028]
[1674000453828,0.00998627,21172.0,21171.0,2.77561751]
[1674000454067,0.00998627,21172.0,21171.0,2.66284867]
[1674000454311,0.01398627,21172.0,21171.0,2.66284867]
[1674000454554,0.01398627,21172.0,21171.0,3.15637495]
[1674000454815,0.01398627,21172.0,21171.0,3.46045793]
[1674000455599,0.01398627,21172.0,21171.0,2.96693165]
[1674000455847,0.01398627,21172.0,21171.0,3.46045793]
[1674000456099,0.00998627,21172.0,21171.0,3.34768909]
[1674000456343,0.00598627,21172.0,21171.0,2.96693165]
[1674000456826,0.00598627,21172.0,21171.0,2.66693165]
[1674000457591,0.00598627,21172.0,21171.0,2.59133165]
[1674000457830,0.00998627,21172.0,21171.0,2.64233165]
[1674000458675,0.00998627,21172.0,21171.0,2.59827298]
[1674000458943,0.00998627,21172.0,21171.0,2.89827298]
[1674000459214,0.00598627,21172.0,21171.0,2.77147298]
[1674000459495,0.00998627,21172.0,21171.0,2.24445898]
[1674000459755,0.00598627,21172.0,21171.0,1.72111498]
[1674000460020,0.00998627,21172.0,21171.0,1.77211498]
[1674000460811,0.01398627,21172.0,21171.0,2.12311498]
[1674000461070,0.00598627,21172.0,21171.0,2.02111498]
[1674000462924,0.19695324,21172.0,21169.0,0.04405867]
[1674000463183,0.19695324,21172.0,21168.0,0.2362]
[1674000463184,0.396993,21171.0,21168.0,0.472393]
[1674000463463,0.51201895,21170.0,21167.0,0.472418]
[1674000463933,0.321293,21169.0,21167.0,0.472418]
[1674000464205,0.0757,21171.0,21167.0,0.472418]
[1674000464206,0.321293,21168.0,21167.0,0.472418]
[1674000464467,0.321293,21168.0,21167.0,0.944851]
[1674000464734,0.29662953,21172.0,21167.0,0.944851]
[1674000465020,0.29262953,21172.0,21168.0,0.61415294]
[1674000465285,0.321293,21171.0,21168.0,1.08655894]
[1674000465549,0.321293,21170.0,21168.0,1.08655894]
[1674000465815,0.321293,21169.0,21168.0,1.08655894]
[1674000466109,0.28862953,21172.0,21168.0,1.08655894]
[1674000466544,0.29262953,21172.0,21168.0,1.08655894]
[1674000466833,0.004,21170.0,21168.0,1.60996994]
[1674000467089,0.325293,21170.0,21168.0,1.60996994]
[1674000467366,0.321293,21169.0,21168.0,1.13756394]
[1674000467612,0.321293,21169.0,21168.0,1.08656394]
[1674000468120,0.48455953,21172.0,21168.0,1.08656394]
[1674000468382,0.48855953,21172.0,21168.0,1.13756394]
[1674000468678,0.321293,21171.0,21168.0,1.55897494]
[1674000468936,0.004,21169.0,21168.0,1.60997494]
[1674000469455,0.004,21169.0,21168.0,1.66097494]
[1674000469720,0.29262953,21172.0,21168.0,1.55897494]
[1674000469721,0.28862953,21172.0,21168.0,1.55897494]
[1674000470454,0.321293,21171.0,21168.0,1.55897494]
[1674000470456,0.28862953,21172.0,21168.0,1.55897494]
[1674000470457,0.00598627,21172.0,21168.0,1.67174378]
[1674000470721,0.00598627,21172.0,21169.0,0.17930433]
[1674000470974,0.00598627,21172.0,21170.0,0.944732]
[1674000471258,0.00622729,21172.0,21170.0,0.944732]
[1674000471494,0.321293,21171.0,21170.0,0.944732]
[1674000471760,0.33152029,21172.0,21170.0,1.244732]
[1674000472022,0.321293,21171.0,21170.0,0.944732]
[1674000472294,0.00998627,21172.0,21170.0,0.944732]
[1674000472295,0.00998627,21172.0,21170.0,1.244732]
[1674000472569,0.00598627,21172.0,21171.0,0.3]
[1674000472837,0.00998627,21172.0,21171.0,1.244688]
[1674000473384,0.00598627,21172.0,21171.0,1.244688]
[1674000473636,0.00598627,21172.0,21171.0,1.94703084]
[1674000474430,0.00598627,21172.0,21171.0,2.11618409]
[1674000474433,0.00598627,21172.0,21171.0,2.34843099]
[1674000474695,0.00598627,21172.0,21171.0,2.11618409]
[1674000475246,0.00598627,21172.0,21171.0,1.598102]
[1674000475787,0.00998627,21172.0,21171.0,1.649102]
[1674000476066,0.00598627,21172.0,21171.0,1.598102]
[1674000476326,0.00988383,21172.0,21171.0,1.758872]
[1674000476596,0.01388383,21172.0,21171.0,1.92264084]
[1674000476896,0.01388383,21172.0,21171.0,1.809872]
[1674000477147,0.01388383,21172.0,21171.0,1.92264084]
[1674000477401,0.01388383,21172.0,21171.0,2.09179409]
[1674000477669,0.01388383,21172.0,21171.0,2.51174002]
[1674000477920,0.00588383,21172.0,21171.0,2.29158677]
[1674000478204,0.00988383,21172.0,21171.0,2.34258677]
[1674000478738,0.01388383,21172.0,21171.0,2.54358677]
[1674000478991,0.01016199,21173.0,21171.0,3.51686276]
[1674000479285,0.004,21172.0,21171.0,2.74850166]
[1674000479567,0.004,21172.0,21171.0,2.80201163]
[1674000479829,0.01016199,21173.0,21171.0,2.98515163]
[1674000480090,0.01016199,21173.0,21172.0,0.18890068]
[1674000480376,0.01016199,21173.0,21172.0,1.5810407]
[1674000480644,0.01016199,21173.0,21172.0,2.11207414]
[1674000481043,0.01416199,21173.0,21172.0,2.11207414]
[1674000481044,0.01016199,21173.0,21172.0,1.8810407]
[1674000481273,0.01416199,21173.0,21172.0,1.76453968]
[1674000481910,0.01416199,21173.0,21172.0,2.05259495]
[1674000482175,0.01416199,21173.0,21172.0,2.27813262]
[1674000482675,0.01416199,21173.0,21172.0,2.2586316]
[1674000482945,0.01416199,21173.0,21172.0,2.51582481]
[1674000483232,0.01416199,21173.0,21172.0,2.75155561]
[1674000483720,0.01416199,21173.0,21172.0,3.24115561]
[1674000483970,0.01416199,21173.0,21172.0,3.7183573]
[1674000484244,0.01016199,21173.0,21172.0,3.61868573]
[1674000484528,0.01016199,21173.0,21172.0,3.93323369]
[1674000484529,0.00170004,21173.0,21172.0,3.93323369]
[1674000484824,0.00170004,21173.0,21172.0,4.42218554]
[1674000485024,0.01099927,21174.0,21172.0,3.34255306]
[1674000485283,0.01099927,21174.0,21173.0,1.97320918]
[1674000485545,0.01099927,21174.0,21173.0,3.19578818]
[1674000486332,0.01099927,21174.0,21173.0,3.04077678]
[1674000486588,0.01099927,21174.0,21173.0,3.10709884]
[1674000486853,0.01099927,21174.0,21173.0,3.08744835]
[1674000487118,0.01099927,21174.0,21173.0,2.89415323]
[1674000487360,0.01099927,21174.0,21173.0,3.55720579]
[1674000487615,0.00099927,21174.0,21173.0,3.55720579]
[1674000487866,0.00099927,21174.0,21173.0,3.17644969]
[1674000488707,0.00099927,21174.0,21173.0,2.89415457]
[1674000488901,0.00099927,21174.0,21173.0,3.27491201]
[1674000489158,0.00099927,21174.0,21173.0,3.68648748]
[1674000490026,0.00099927,21174.0,21173.0,3.35752079]
[1674000490186,0.01063843,21177.0,21174.0,0.15087147]
[1674000490434,0.01063843,21177.0,21176.0,0.78128308]
[1674000490688,0.01057582,21177.0,21176.0,2.15887372]
[1674000490933,0.01057582,21177.0,21176.0,2.8245728]
[1674000491181,0.01057582,21177.0,21176.0,2.4238505]
[1674000491438,0.01057582,21177.0,21176.0,2.83269282]
[1674000491682,0.01057582,21177.0,21176.0,3.13753176]
[1674000491929,0.01057582,21177.0,21176.0,3.27868408]
[1674000492171,0.01057582,21177.0,21176.0,2.96836439]
[1674000492423,0.01057582,21177.0,21176.0,3.50932697]
[1674000492678,0.01057582,21177.0,21176.0,3.39654716]
[1674000492931,0.01057582,21177.0,21176.0,2.80478972]
[1674000493191,0.01057582,21177.0,21176.0,1.311399]
[1674000493443,0.01057582,21177.0,21176.0,1.033464]
[1674000493700,0.01057582,21177.0,21176.0,0.944464]
[1674000493986,0.01057582,21177.0,21176.0,0.561292]
[1674000493987,0.60285887,21177.0,21176.0,0.561292]
[1674000494233,0.60309989,21177.0,21176.0,0.472292]
[1674000494498,0.60409989,21177.0,21176.0,0.08106]
[1674000494790,0.60309989,21177.0,21176.0,6e-05]
[1674000495027,0.76589989,21177.0,21176.0,0.00706]
[1674000495256,0.75489989,21177.0,21176.0,6e-05]
[1674000495512,0.76589989,21177.0,21176.0,0.00706]
[1674000495770,0.61385887,21177.0,21176.0,0.00706]
[1674000496026,0.61385887,21177.0,21176.0,0.479292]
[1674000496375,0.61385887,21177.0,21176.0,0.779292]
[1674000496560,0.33186882,21177.0,21176.0,1.244524]
[1674000496822,0.02157582,21177.0,21176.0,1.251524]
[1674000497371,0.02157582,21177.0,21176.0,1.5978758]
[1674000497669,0.02157582,21177.0,21176.0,1.9517078]
[1674000497920,0.02157582,21177.0,21176.0,2.11110123]
[1674000498178,0.02157582,21177.0,21176.0,2.66102604]
[1674000498443,0.01057582,21177.0,21176.0,2.96206036]
[1674000498722,0.01157582,21177.0,21176.0,3.44194866]
[1674000498976,0.01063843,21178.0,21177.0,0.48802526]
[1674000498977,0.00632357,21178.0,21177.0,0.48802526]
[1674000499232,0.00632357,21178.0,21177.0,2.61332571]
[1674000499513,0.00632357,21178.0,21177.0,3.15375222]
[1674000499770,0.00632357,21178.0,21177.0,2.93791328]
[1674000500075,0.00632357,21178.0,21177.0,2.55715584]
[1674000500370,0.00632357,21178.0,21177.0,2.44449283]
[1674000501161,0.00632357,21178.0,21177.0,2.55715584]
[1674000501438,0.00732357,21178.0,21177.0,3.55837104]
[1674000501706,0.00209568,21178.0,21177.0,4.11980227]
[1674000501962,0.00209568,21178.0,21177.0,4.24210309]
[1674000502219,0.00209568,21178.0,21177.0,3.06296577]
[1674000503596,0.00209568,21178.0,21177.0,3.49039478]
[1674000503856,0.00209568,21178.0,21177.0,3.50722986]
[1674000504112,0.00209568,21178.0,21177.0,3.88795515]
[1674000504567,0.00209568,21178.0,21177.0,3.50719771]
[1674000504568,0.00209568,21178.0,21177.0,3.06293362]
[1674000504824,0.00209568,21178.0,21177.0,2.95036897]
[1674000505860,0.00209568,21178.0,21177.0,2.87456897]
[1674000506117,0.0023367,21178.0,21177.0,1.62760728]
[1674000506384,0.00209568,21178.0,21177.0,1.34969128]
[1674000506910,0.00209568,21178.0,21177.0,1.34963128]
[1674000507753,0.00209568,21178.0,21177.0,1.02742]
[1674000509143,0.00209568,21178.0,21177.0,1.5635]
[1674000509433,0.00209568,21178.0,21177.0,1.841416]
[1674000510807,0.00209568,21178.0,21177.0,2.39451769]
[1674000511320,0.00209568,21178.0,21177.0,2.95253102]
[1674000511322,0.00209568,21178.0,21177.0,3.0655167]
[1674000511584,0.00209568,21178.0,21177.0,3.1414167]
[1674000512099,0.00209568,21178.0,21177.0,3.25444222]
[1674000512382,0.00209568,21178.0,21177.0,2.97250431]
[1674000512890,0.00209568,21178.0,21177.0,3.41814933]
[1674000513143,0.01063691,21179.0,21178.0,0.23642392]
[1674000513445,0.01063691,21179.0,21178.0,2.63499298]
[1674000513719,0.01063691,21179.0,21178.0,3.05771314]
[1674000513990,0.01063691,21179.0,21178.0,2.94492703]
[1674000514255,0.01063691,21179.0,21178.0,2.77574393]
[1674000514529,0.01063691,21179.0,21178.0,2.8224155]
[1674000514818,0.01063691,21179.0,21178.0,3.10438471]
[1674000515101,0.01163691,21179.0,21178.0,3.18838471]
[1674000515623,0.01163691,21179.0,21178.0,2.96280711]
[1674000516532,0.01163691,21179.0,21178.0,3.18848427]
[1674000516784,0.01163691,21179.0,21178.0,2.96280711]
[1674000517045,0.01163691,21179.0,21178.0,3.18854357]
[1674000517864,0.01163691,21179.0,21178.0,2.65385357]
[1674000518161,0.01187793,21179.0,21178.0,1.93292328]
[1674000518415,0.01163691,21179.0,21178.0,1.82012436]
[1674000518941,0.01163691,21179.0,21178.0,1.59025964]
[1674000519243,0.01163691,21179.0,21178.0,1.42094746]
[1674000519507,0.20236286,21179.0,21178.0,1.14304746]
[1674000519775,0.63532697,21179.0,21178.0,1.03016992]
[1674000520314,0.63532697,21179.0,21178.0,0.55798192]
[1674000521079,0.63532697,21179.0,21178.0,0.66100111]
[1674000521348,0.63556799,21179.0,21178.0,0.66100111]
[1674000521641,0.63432697,21179.0,21178.0,0.57700111]
[1674000521863,0.63532697,21179.0,21178.0,0.85198192]
[1674000522118,0.63432697,21179.0,21178.0,0.77392192]
[1674000522389,0.63432697,21179.0,21178.0,0.47392192]
[1674000522390,0.64932697,21179.0,21178.0,0.47392192]
[1674000522685,0.63432697,21179.0,21178.0,0.00173392]
[1674000523213,0.63532697,21179.0,21178.0,0.04973392]
[1674000523464,0.63432697,21179.0,21178.0,0.00173392]
[1674000523723,0.64932697,21179.0,21178.0,0.00173392]
[1674000523992,0.64932697,21179.0,21178.0,0.47392192]
[1674000524559,0.64932697,21179.0,21178.0,0.94610992]
[1674000524834,0.64932697,21179.0,21178.0,1.24610992]
[1674000525350,0.63456799,21179.0,21178.0,0.47392192]
[1674000525882,0.63556799,21179.0,21178.0,0.55192192]
[1674000526148,0.63556799,21179.0,21178.0,1.02410992]
[1674000526412,0.63556799,21179.0,21178.0,0.07973392]
[1674000526692,0.63556799,21179.0,21178.0,0.55192192]
[1674000527145,0.63456799,21179.0,21178.0,0.00173392]
[1674000529252,0.65456799,21179.0,21178.0,0.00773392]
[1674000530070,0.65456799,21179.0,21178.0,0.10295481]
[1674000530071,0.35217093,21179.0,21178.0,0.10295481]
[1674000530329,0.35192991,21179.0,21178.0,1.25210992]
[1674000530607,0.03063691,21179.0,21178.0,1.25210992]
[1674000530884,0.03063691,21179.0,21178.0,0.95210992]
[1674000530885,0.35192991,21179.0,21178.0,0.95210992]
[1674000531974,0.33192991,21179.0,21178.0,0.47392192]
[1674000532262,0.33192991,21179.0,21178.0,0.00773392]
[1674000532263,0.89999491,21179.0,21178.0,0.00773392]
[1674000532835,1.37409708,21179.0,21178.0,0.00773392]
[1674000533086,1.52409708,21179.0,21178.0,0.00773392]
[1674000533344,0.88023593,21179.0,21178.0,0.00173392]
[1674000533658,0.88023593,21179.0,21177.0,6e-05]
[1674000533924,0.397193,21178.0,21174.0,0.47314747]
[1674000534177,0.321293,21177.0,21174.0,0.59536701]
[1674000534443,0.321293,21176.0,21174.0,0.59536701]
[1674000534733,0.321293,21175.0,21174.0,0.59536701]
[1674000535025,0.321293,21175.0,21174.0,0.89536701]
[1674000535282,0.17954,21178.0,21174.0,0.89536701]
[1674000535538,0.9605653,21179.0,21175.0,0.3]
[1674000535796,0.321293,21178.0,21175.0,0.772244]
[1674000536067,0.321293,21177.0,21175.0,0.772244]
[1674000536374,0.321293,21176.0,21175.0,0.772244]
[1674000536632,0.37337435,21179.0,21175.0,0.772244]
[1674000536891,0.321293,21178.0,21175.0,0.772244]
[1674000537148,0.321293,21177.0,21175.0,0.777244]
[1674000537441,0.321293,21177.0,21175.0,1.60837572]
[1674000537933,0.29767435,21179.0,21175.0,1.60337572]
[1674000538494,0.005,21177.0,21175.0,1.64537572]
[1674000538763,0.29767435,21179.0,21175.0,1.60337572]
[1674000539031,0.34667435,21179.0,21175.0,1.60737572]
[1674000539320,0.321293,21178.0,21175.0,1.60337572]
[1674000539575,0.321293,21177.0,21175.0,0.986499]
[1674000539836,0.321293,21176.0,21175.0,0.986499]
[1674000540100,0.321293,21176.0,21175.0,1.286499]
[1674000540366,0.321293,21176.0,21175.0,0.342]
[1674000540622,0.321293,21176.0,21175.0,0.3]
[1674000540891,0.321293,21176.0,21175.0,0.29]
[1674000541182,0.32153402,21176.0,21175.0,0.762255]
[1674000541466,0.32653402,21176.0,21175.0,0.514255]
[1674000542068,0.32653402,21176.0,21175.0,0.98651]
[1674000542069,0.326293,21176.0,21175.0,0.98651]
[1674000544567,0.402193,21176.0,21175.0,0.042]
[1674000545077,0.874425,21176.0,21175.0,0.042]
[1674000545360,0.402193,21176.0,21175.0,0.042]
[1674000545610,0.326293,21176.0,21175.0,0.514255]
[1674000546156,0.326293,21176.0,21175.0,0.814255]
[1674000546404,0.32653402,21176.0,21175.0,0.814255]
[1674000546665,0.32653402,21176.0,21175.0,1.28651]
[1674000546921,0.32653402,21176.0,21175.0,0.98651]
[1674000547175,0.32653402,21176.0,21175.0,1.28651]
[1674000547434,0.326293,21176.0,21175.0,1.28651]
[1674000547678,0.32653402,21176.0,21175.0,1.28651]
[1674000548798,1.06539197,21176.0,21175.0,0.042]
[1674000549062,1.34689802,21176.0,21175.0,0.042]
[1674000549854,1.49689802,21176.0,21175.0,0.042]
[1674000550113,1.86989802,21176.0,21175.0,0.042]
[1674000550374,2.66956218,21176.0,21175.0,0.042]
[1674000550927,2.58021434,21176.0,21175.0,0.042]
[1674000551195,2.28731434,21176.0,21174.0,0.00087147]
[1674000551451,0.630793,21175.0,21174.0,0.00087147]
[1674000551709,2.45897726,21175.0,21174.0,0.00087147]
[1674000551973,2.84547726,21175.0,21174.0,0.00087147]
[1674000552231,3.14547726,21175.0,21174.0,0.00087147]
[1674000552497,2.84547726,21175.0,21174.0,0.00487147]
[1674000552754,2.84547726,21175.0,21174.0,0.00087147]
[1674000553009,3.22305241,21175.0,21174.0,0.00487147]
[1674000553583,3.22068522,21175.0,21174.0,0.00487147]
[1674000557002,2.80926596,21175.0,21174.0,0.00487147]
[1674000558025,2.42276596,21175.0,21174.0,0.00487147]
[1674000558287,0.69886815,21175.0,21174.0,0.00487147]
[1674000559862,0.374293,21175.0,21174.0,0.34142676]
[1674000560127,0.374293,21175.0,21174.0,1.69735174]
[1674000560128,0.053,21175.0,21174.0,1.69735174]
[1674000560658,0.053,21175.0,21174.0,0.81370376]